[Event "Bangabandhu Premier Div League 2023-24"]
[Site "Dhaka"]
[Date "2024.02.04"]
[Round "4.1"]
[White "Ikramul, Haq Siam"]
[Black "Hossain, Enamul"]
[Result "1/2-1/2"]
[ECO "B30"]
[WhiteElo "2036"]
[BlackElo "2372"]
[Annotator "ChessBase"]
[PlyCount "61"]
[EventDate "2024.02.01"]
[EventCountry "BAN"]
[SourceTitle "playchess.com"]
[Source "ChessBase"]
[SourceQuality "1"]
[TimeControl "40/5400+30:1800+30"]

1. e4 {[%emt 0:01:04]} c5 {[%emt 0:00:43]} 2. Nf3 {[%emt 0:00:13]} Nc6 {[%emt 0:00:17]} 3. Bc4 {[%emt 0:00:53]} e6 {[%emt 0:00:56]} 4. O-O {[%emt 0:03:36]} a6 {[%emt 0:02:45]} 5. d4 {[%emt 0:00:12]} cxd4 {[%emt 0:00:42]} 6. Nxd4 {[%emt 0:00:04]} Qc7 {[%emt 0:00:28]} 7. Nxc6 {[%emt 0:00:52]} bxc6 {[%emt 0:07:32]} 8. Qe2 {[%emt 0:02:53]} Nf6 {[%emt 0:03:16]} 9. e5 {[%emt 0:02:03]} Nd5 {[%emt 0:00:24]} 10. b3 {[%emt 0:00:11]} Bb7 {[%emt 0:03:29]} 11. Bb2 {[%emt 0:10:03]} Be7 {[%emt 0:01:53]} 12. Nd2 {[%emt 0:04:08]} O-O {[%emt 0:03:15]} 13. Ne4 {[%emt 0:03:53]} f5 {[%emt 0:05:05]} 14. Nd2 {[%emt 0:17:22]} Nf4 {[%emt 0:10:33]} 15. Qe3 {[%emt 0:06:51]} Bg5 {[%emt 0:03:46]} 16. Qg3 {[%emt 0:02:44]} Bh6 {[%emt 0:03:22]} 17. Nf3 {[%emt 0:00:33]} c5 {[%emt 0:03:02]} 18. Bc1 {[%emt 0:06:41]} Nh5 {[%emt 0:05:28]} 19. Qh4 {[%emt 0:12:14]} Bxc1 {[%emt 0:01:13]} 20. Raxc1 {[%emt 0:00:17]} g6 {[%emt 0:05:57]} 21. Rcd1 {[%emt 0:02:27]} Bxf3 {[%emt 0:13:26]} 22. gxf3 {[%emt 0:00:02]} Qxe5 {[%emt 0:08:07]} 23. Rxd7 {[%emt 0:22:44]} Rae8 {[%emt 0:03:15]} 24. Rfd1 {[%emt 0:00:00]} Nf6 {[%emt 0:05:30]} 25. Ra7 {[%emt 0:00:00]} Rf7 {[%emt 0:02:03]} 26. Rxa6 {[%emt 0:00:00]} Kg7 {[%emt 0:07:03]} 27. Qg5 {[%emt 0:00:00]} Qc3 {[%emt 0:00:00]} 28. Kg2 {[%emt 0:00:00]} Qxc2 {[%emt 0:00:00]} 29. Qd2 {[%emt 0:00:42]} Qxd2 {[%emt 0:00:00]} 30. Rxd2 {[%emt 0:00:01]} Nh5 {[%emt 0:00:00]} 31. Rc6 {[%emt 0:00:59]} 1/2-1/2

[Event "Bangabandhu Premier Div League 2023-24"]
[Site "Dhaka"]
[Date "2024.02.04"]
[Round "4.2"]
[White "Chigaev, Maksim"]
[Black "Mohammad Nubairshah Shaikh"]
[Result "1/2-1/2"]
[ECO "D10"]
[WhiteElo "2622"]
[BlackElo "2428"]
[Annotator "ChessBase"]
[PlyCount "87"]
[EventDate "2024.02.01"]
[EventCountry "BAN"]
[SourceTitle "playchess.com"]
[Source "ChessBase"]
[SourceQuality "1"]
[TimeControl "40/5400+30:1800+30"]

1. d4 {[%emt 0:00:40]} d5 {[%emt 0:00:49]} 2. c4 {[%emt 0:01:34]} c6 {[%emt 0:00:03]} 3. cxd5 {[%emt 0:03:36]} cxd5 {[%emt 0:00:09]} 4. Bf4 {[%emt 0:00:08]} Nc6 {[%emt 0:00:11]} 5. e3 {[%emt 0:00:26]} Nf6 {[%emt 0:00:57]} 6. Nc3 {[%emt 0:00:09]} Bf5 {[%emt 0:00:15]} 7. Qb3 {[%emt 0:00:38]} Na5 {[%emt 0:00:02]} 8. Qa4+ {[%emt 0:00:09]} Bd7 {[%emt 0:00:02]} 9. Bb5 {[%emt 0:00:10]} Nc6 {[%emt 0:13:26]} 10. Nf3 {[%emt 0:00:09]} a6 {[%emt 0:00:07]} 11. Bxc6 {[%emt 0:00:08]} Bxc6 {[%emt 0:00:03]} 12. Qb3 {[%emt 0:00:12]} Nh5 {[%emt 0:08:11]} 13. O-O {[%emt 0:02:42]} e6 {[%emt 0:04:59]} 14. Ne5 {[%emt 0:10:16]} Nxf4 {[%emt 0:03:37]} 15. exf4 {[%emt 0:00:03]} Bd6 {[%emt 0:00:43]} 16. Rfe1 {[%emt 0:01:16]} O-O {[%emt 0:01:28]} 17. Rad1 {[%emt 0:06:27]} Qf6 {[%emt 0:13:35]} 18. g3 {[%emt 0:00:56]} Rfc8 {[%emt 0:00:09]} 19. h4 {[%emt 0:05:26]} Be8 {[%emt 0:05:41]} 20. Na4 {[%emt 0:29:30]} Bxa4 {[%emt 0:01:37]} 21. Qxa4 {[%emt 0:00:13]} b5 {[%emt 0:01:49]} 22. Qa5 {[%emt 0:08:47]} Qd8 {[%emt 0:08:06]} 23. Qd2 {[%emt 0:00:21]} Rc7 {[%emt 0:04:51]} 24. Qd3 {[%emt 0:12:13]} g6 {[%emt 0:05:43]} 25. Nf3 {[%emt 0:01:14]} Rac8 {[%emt 0:00:44]} 26. Kg2 {[%emt 0:01:50]} Rc2 {[%emt 0:06:02]} 27. Re2 {[%emt 0:00:23]} Qc7 {[%emt 0:03:44]} 28. b3 {[%emt 0:02:09]} Bb4 {[%emt 0:05:05]} 29. a4 {[%emt 0:04:04]} Rc3 {[%emt 0:04:08]} 30. Qb1 {[%emt 0:00:03]} bxa4 {[%emt 0:00:26]} 31. bxa4 {[%emt 0:00:03]} Qc4 {[%emt 0:00:01]} 32. Rb2 {[%emt 0:10:35]} Bd6 {[%emt 0:03:48]} 33. h5 {[%emt 0:00:00]} Qxa4 {[%emt 0:01:09]} 34. hxg6 {[%emt 0:00:00]} hxg6 {[%emt 0:00:02]} 35. Ng5 {[%emt 0:00:00]} Rc2 {[%emt 0:05:13]} 36. Rh1 {[%emt 0:00:00]} Be7 {[%emt 0:00:23]} 37. Rh8+ {[%emt 0:00:00]} Kg7 {[%emt 0:00:01]} 38. Rh7+ {[%emt 0:00:00]} Kg8 {[%emt 0:00:06]} 39. Rh8+ {[%emt 0:00:10]} Kg7 {[%emt 0:00:00]} 40. Rh7+ {[%emt 0:00:15]} Kg8 {[%emt 0:00:20]} 41. Rxc2 {[%emt 0:33:17]} Qxc2 {[%emt 0:04:00]} 42. Rh8+ {[%emt 0:00:00]} Kg7 {[%emt 0:00:21]} 43. Rh7+ {[%emt 0:00:00]} Kg8 {[%emt 0:00:01]} 44. Rh8+ {[%emt 0:00:00]} 1/2-1/2

[Event "Bangabandhu Premier Div League 2023-24"]
[Site "Dhaka"]
[Date "2024.02.04"]
[Round "4.2"]
[White "Tanvir, Alam"]
[Black "Pranav Vijay"]
[Result "0-1"]
[ECO "E12"]
[WhiteElo "1836"]
[BlackElo "2252"]
[Annotator "RC"]
[PlyCount "46"]
[EventDate "2024.02.01"]
[EventCountry "BAN"]
[SourceTitle "playchess.com"]
[Source "ChessBase"]
[SourceQuality "1"]
[TimeControl "40/5400+30:1800+30"]

1. d4 {[%emt 1:31:00]} Nf6 {[%emt 0:00:11]} 2. c4 {[%emt 0:00:00]} e6 {[%emt 0:00:07]} 3. Nf3 {[%emt 0:01:00]} b6 {[%emt 1:31:42]} 4. Nc3 {[%emt 0:00:30]} Bb4 {[%emt 0:00:00]} 5. Bf4 {[%emt 0:00:00]} Bb7 {[%emt 0:00:00]} 6. e3 {[%emt 0:00:00]} O-O {[%emt 0:00:00]} 7. Bd3 {[%emt 0:01:30]} Bxc3+ {[%emt 0:00:00]} 8. bxc3 {[%emt 0:00:00]} d6 {[%emt 0:02:30]} 9. Qc2 {[%emt 0:00:00]} Nbd7 {[%emt 0:00:30]} 10. e4 {[%emt 0:01:30]} e5 {[%emt 0:00:00]} 11. Bg5 {[%emt 0:00:00]} h6 {[%emt 0:01:00]} 12. Bd2 {[%emt 0:00:00]} exd4 {[%emt 0:00:30]} 13. cxd4 {[%emt 0:00:00]} Bxe4 {[%emt 0:00:30]} 14. O-O-O {[%emt 0:02:00]} Re8 {[%emt 0:00:30]} 15. Rde1 {[%emt 0:00:00]} d5 {[%emt 0:00:30]} 16. h4 {[%emt 0:00:00]} c5 {[%emt 0:00:30]} 17. Ng5 {[%emt 0:00:00]} Bxd3 {[%emt 0:00:00]} 18. Qxd3 {[%emt 0:00:00]} Rxe1+ {[%emt 0:00:00]} 19. Bxe1 {[%emt 0:00:00]} dxc4 {[%emt 0:00:00]} 20. Qf5 {[%emt 0:00:00]} cxd4 {[%emt 0:02:00]} 21. g4 {[%emt 0:00:00]} Qe7 {[%emt 0:00:00]} 22. Qf3 {[%emt 0:04:00]} Re8 {[%emt 0:00:00]} 23. Bd2 {[%emt 0:00:00]} c3 {[%emt 0:00:00]} 0-1

[Event "Bangabandhu Premier Div League 2023-24"]
[Site "Dhaka"]
[Date "2024.02.04"]
[Round "4.3"]
[White "Mayank Chakraborty"]
[Black "Iniyan, Pa"]
[Result "1/2-1/2"]
[ECO "E16"]
[WhiteElo "2409"]
[BlackElo "2515"]
[Annotator "RC"]
[PlyCount "89"]
[EventDate "2024.02.01"]
[EventCountry "BAN"]
[SourceTitle "playchess.com"]
[Source "ChessBase"]
[SourceQuality "1"]
[TimeControl "40/5400+30:1800+30"]

1. d4 {[%emt 0:00:03]} Nf6 {[%emt 0:01:01]} 2. c4 {[%emt 0:00:03]} e6 {[%emt 0:00:12]} 3. g3 {[%emt 0:00:09]} Bb4+ {[%emt 0:03:08]} 4. Nd2 {[%emt 0:00:07]} O-O {[%emt 0:00:33]} 5. Bg2 {[%emt 0:00:07]} d5 {[%emt 0:01:54]} 6. Ngf3 {[%emt 0:00:06]} b6 {[%emt 0:06:10]} 7. O-O {[%emt 0:00:16]} Bb7 {[%emt 0:00:34]} 8. a3 {[%emt 0:00:04]} Be7 {[%emt 0:04:04]} 9. cxd5 {[%emt 0:00:02]} exd5 {[%emt 0:02:09]} 10. b4 {[%emt 0:00:02]} Nbd7 {[%emt 0:04:15]} 11. Ne5 {[%emt 0:00:07]} a5 {[%emt 0:06:57]} 12. b5 {[%emt 0:01:13]} Nxe5 {[%emt 0:00:32]} 13. dxe5 {[%emt 0:00:15]} Nd7 {[%emt 0:00:07]} 14. Nf3 {[%emt 0:04:47]} a4 {[%emt 0:02:54]} 15. h4 {[%emt 0:13:11]} Re8 {[%emt 0:09:39]} 16. Bh3 {[%emt 0:07:21]} d4 {[%emt 0:08:17]} 17. e6 {[%emt 0:05:52]} Nc5 {[%emt 0:00:56]} 18. exf7+ {[%emt 0:05:57]} Kxf7 {[%emt 0:00:10]} 19. Bg2 {[%emt 0:09:46]} Kg8 {[%emt 0:01:34]} 20. Nxd4 {[%emt 0:09:12]} Bxg2 {[%emt 0:01:05]} 21. Kxg2 {[%emt 0:01:19]} Bf6 {[%emt 0:01:44]} 22. Be3 {[%emt 0:07:05]} Nb3 {[%emt 0:12:09]} 23. Nxb3 {[%emt 0:00:22]} Qxd1 {[%emt 0:00:07]} 24. Rfxd1 {[%emt 0:00:11]} axb3 {[%emt 0:00:15]} 25. Rab1 {[%emt 0:01:43]} b2 {[%emt 0:00:14]} 26. Rd3 {[%emt 0:06:27]} Ra4 {[%emt 0:06:19]} 27. Bg5 {[%emt 0:05:28]} Bxg5 {[%emt 0:01:48]} 28. hxg5 {[%emt 0:00:06]} Rxe2 {[%emt 0:00:06]} 29. Rb3 {[%emt 0:00:19]} Rc2 {[%emt 0:00:55]} 30. R1xb2 {[%emt 0:01:04]} Rxb2 {[%emt 0:00:07]} 31. Rxb2 {[%emt 0:00:04]} Rxa3 {[%emt 0:00:08]} 32. Rc2 {[%emt 0:00:30]} Rb3 {[%emt 0:01:32]} 33. Rxc7 {[%emt 0:00:19]} Rxb5 {[%emt 0:00:11]} 34. f4 {[%emt 0:00:08]} Rc5 {[%emt 0:11:26]} 35. Rb7 {[%emt 0:05:20]} Rc6 {[%emt 0:00:35]} 36. g4 {[%emt 0:03:27]} h6 {[%emt 0:01:27]} 37. gxh6 {[%emt 0:00:06]} Rxh6 {[%emt 0:00:09]} 38. Kf3 {[%emt 0:01:41]} Rc6 {[%emt 0:04:09]} 39. g5 {[%emt 0:01:09]} g6 {[%emt 0:01:33]} 40. Ke4 {[%emt 0:00:06]} Kf8 {[%emt 0:02:17]} 41. Kd4 {[%emt 0:31:55]} Rd6+ {[%emt 0:30:18]} 42. Ke5 {[%emt 0:00:16]} Rc6 {[%emt 0:00:06]} 43. Rb8+ {[%emt 0:10:28]} Ke7 {[%emt 0:00:30]} 44. Rb7+ {[%emt 0:00:13]} Kf8 {[%emt 0:00:04]} 45. Ke4 {[%emt 0:04:34]} 1/2-1/2

[Event "Bangabandhu Premier Div League 2023-24"]
[Site "Dhaka"]
[Date "2024.02.04"]
[Round "4.3"]
[White "Murshed, Niaz"]
[Black "Sohan, Sobhan"]
[Result "1-0"]
[ECO "A50"]
[WhiteElo "2363"]
[BlackElo "1544"]
[Annotator "RC"]
[PlyCount "50"]
[EventDate "2024.02.01"]
[EventCountry "BAN"]
[SourceTitle "playchess.com"]
[Source "ChessBase"]
[SourceQuality "1"]
[TimeControl "40/5400+30:1800+30"]

1. d4 {[%emt 0:00:05]} Nf6 {[%emt 0:00:41]} 2. c4 {[%emt 0:00:06]} c6 {[%emt 0:02:08]} 3. Nc3 {[%emt 0:00:37]} h6 {[%emt 1:29:11]} 4. e4 {[%emt 1:31:42]} d6 {[%emt 0:00:30]} 5. Nf3 {[%emt 0:00:30]} e6 {[%emt 0:00:30]} 6. Bd3 {[%emt 0:00:30]} Be7 {[%emt 0:00:00]} 7. Qe2 {[%emt 0:00:00]} Nbd7 {[%emt 0:01:00]} 8. e5 {[%emt 0:01:00]} dxe5 {[%emt 0:00:00]} 9. dxe5 {[%emt 0:00:30]} Ng8 {[%emt 0:00:00]} 10. h4 {[%emt 0:00:30]} Nc5 {[%emt 0:00:00]} 11. Bc2 {[%emt 0:00:30]} Qb6 {[%emt 0:00:00]} 12. O-O {[%emt 0:00:00]} Bd7 {[%emt 0:02:30]} 13. Rb1 {[%emt 0:00:00]} Na6 {[%emt 0:00:30]} 14. a3 {[%emt 0:01:30]} c5 {[%emt 0:00:00]} 15. Be3 {[%emt 0:00:30]} Qc7 {[%emt 0:00:00]} 16. Nb5 {[%emt 0:00:30]} Bxb5 {[%emt 0:00:00]} 17. cxb5 {[%emt 0:00:00]} Nb8 {[%emt 0:02:00]} 18. Rbc1 {[%emt 0:01:00]} Nd7 {[%emt 0:00:00]} 19. Be4 {[%emt 0:00:30]} O-O-O {[%emt 0:00:00]} 20. b4 {[%emt 0:00:00]} Kb8 {[%emt 0:01:30]} 21. Rfd1 {[%emt 0:01:00]} f5 {[%emt 0:00:00]} 22. Bb1 {[%emt 0:00:30]} Rc8 {[%emt 0:01:00]} 23. Qd2 {[%emt 0:00:30]} Rd8 {[%emt 0:00:00]} 24. Qc3 {[%emt 0:00:00]} Rc8 {[%emt 0:00:00]} 25. Qc4 {[%emt 0:00:00]} Nf8 1-0

[Event "Bangabandhu Premier Div League 2023-24"]
[Site "Dhaka"]
[Date "2024.02.04"]
[Round "4.4"]
[White "Anata, Choudhury"]
[Black "Subrota, Biswas"]
[Result "0-1"]
[ECO "B33"]
[WhiteElo "2196"]
[BlackElo "2223"]
[Annotator "ChessBase"]
[PlyCount "76"]
[EventDate "2024.02.01"]
[EventCountry "BAN"]
[SourceTitle "playchess.com"]
[Source "ChessBase"]
[SourceQuality "1"]
[TimeControl "40/5400+30:1800+30"]

1. e4 {[%emt 0:00:04]} c5 {[%emt 0:00:35]} 2. Nf3 {[%emt 0:00:11]} Nc6 {[%emt 0:01:05]} 3. d4 {[%emt 0:00:19]} cxd4 {[%emt 0:00:02]} 4. Nxd4 {[%emt 0:00:09]} Nf6 {[%emt 0:00:03]} 5. Nc3 {[%emt 0:00:09]} e5 {[%emt 0:00:37]} 6. Ndb5 {[%emt 0:00:29]} d6 {[%emt 0:00:03]} 7. Nd5 {[%emt 0:00:45]} Nxd5 {[%emt 0:00:02]} 8. exd5 {[%emt 0:00:09]} Nb8 {[%emt 0:00:03]} 9. a4 {[%emt 0:00:21]} Be7 {[%emt 0:00:02]} 10. Be2 {[%emt 0:00:18]} O-O {[%emt 0:00:10]} 11. Bd2 {[%emt 0:00:27]} Bf5 {[%emt 0:04:30]} 12. O-O {[%emt 0:04:00]} Be4 {[%emt 0:03:36]} 13. c4 {[%emt 0:04:20]} Bg6 {[%emt 0:00:39]} 14. a5 {[%emt 0:02:09]} a6 {[%emt 0:00:02]} 15. Nc3 {[%emt 0:00:28]} Nd7 {[%emt 0:00:21]} 16. f4 {[%emt 0:04:50]} f5 {[%emt 0:00:05]} 17. Kh1 {[%emt 0:00:35]} Rc8 {[%emt 0:00:05]} 18. b4 {[%emt 0:07:04]} Bf6 {[%emt 0:00:16]} 19. Rc1 {[%emt 0:00:12]} exf4 {[%emt 0:02:30]} 20. Bxf4 {[%emt 0:00:10]} Be5 {[%emt 0:00:12]} 21. Be3 {[%emt 0:07:31]} Qh4 {[%emt 0:04:42]} 22. Bg1 {[%emt 0:02:57]} Nf6 {[%emt 0:01:39]} 23. Rf3 {[%emt 0:43:33]} Qg5 {[%emt 0:26:21]} 24. c5 {[%emt 0:04:33]} Bh5 {[%emt 0:00:38]} 25. Rf1 {[%emt 0:09:19]} Qh6 {[%emt 0:08:40]} 26. Qd3 {[%emt 0:05:14]} f4 {[%emt 0:18:55]} 27. Ne4 {[%emt 0:02:32]} Ng4 {[%emt 0:03:31]} 28. Bxg4 {[%emt 0:00:33]} Bxg4 {[%emt 0:00:02]} 29. Rce1 {[%emt 0:00:52]} Qg6 {[%emt 0:11:36]} 30. Bd4 {[%emt 0:00:23]} f3 {[%emt 0:07:57]} 31. g3 {[%emt 0:00:27]} f2 {[%emt 0:00:44]} 32. Rxf2 {[%emt 0:00:34]} Rxf2 {[%emt 0:00:21]} 33. Bxf2 {[%emt 0:00:09]} Rf8 {[%emt 0:01:53]} 34. Kg1 {[%emt 0:00:43]} Bf3 {[%emt 0:03:10]} 35. Qc4 {[%emt 0:00:41]} Qf5 {[%emt 0:00:20]} 36. Nxd6 {[%emt 0:00:31]} Bxd6 {[%emt 0:00:05]} 37. cxd6 {[%emt 0:00:05]} Bxd5 {[%emt 0:00:24]} 38. Qf1 {[%emt 0:00:30]} Qf3 {[%emt 0:03:34]} 0-1

[Event "Bangabandhu Premier Div League 2023-24"]
[Site "Dhaka"]
[Date "2024.02.04"]
[Round "4.4"]
[White "Diya Chowdhury"]
[Black "Narayanan, Srinath"]
[Result "1/2-1/2"]
[ECO "B66"]
[WhiteElo "1881"]
[BlackElo "2552"]
[Annotator "RC"]
[PlyCount "41"]
[EventDate "2024.02.01"]
[EventCountry "BAN"]
[SourceTitle "playchess.com"]
[Source "ChessBase"]
[SourceQuality "1"]
[TimeControl "40/5400+30:1800+30"]

1. e4 {[%emt 0:00:13]} c5 {[%emt 0:00:11]} 2. Nf3 {[%emt 0:00:08]} d6 {[%emt 0:00:16]} 3. d4 {[%emt 0:00:09]} cxd4 {[%emt 0:00:09]} 4. Nxd4 {[%emt 0:00:08]} Nf6 {[%emt 0:00:04]} 5. Nc3 {[%emt 0:00:25]} Nc6 {[%emt 0:00:15]} 6. Bg5 {[%emt 0:00:18]} e6 {[%emt 0:00:06]} 7. Qd2 {[%emt 0:00:19]} a6 {[%emt 0:00:07]} 8. Nxc6 {[%emt 0:00:44]} bxc6 {[%emt 0:00:08]} 9. O-O-O {[%emt 1:32:36]} Qa5 {[%emt 1:33:44]} 10. Bc4 {[%emt 0:00:30]} Bb7 {[%emt 0:00:30]} 11. Rhe1 {[%emt 0:00:30]} Nd7 {[%emt 0:00:00]} 12. f4 {[%emt 0:00:30]} Nb6 {[%emt 0:01:00]} 13. Bb3 {[%emt 0:00:30]} c5 {[%emt 0:00:30]} 14. Na4 {[%emt 0:00:30]} Qxd2+ {[%emt 0:00:00]} 15. Rxd2 {[%emt 0:00:30]} Nd7 {[%emt 0:01:00]} 16. f5 {[%emt 0:00:00]} e5 {[%emt 0:00:30]} 17. Nc3 {[%emt 0:00:00]} Nb6 {[%emt 0:00:00]} 18. Na4 {[%emt 0:00:00]} Nd7 {[%emt 0:00:00]} 19. Nc3 {[%emt 0:00:00]} Nb6 {[%emt 0:00:00]} 20. Na4 {[%emt 0:00:00]} Nd7 {[%emt 0:00:00]} 21. Nc3 {[%emt 0:03:00]} 1/2-1/2

[Event "Bangabandhu Premier Div League 2023-24"]
[Site "Dhaka"]
[Date "2024.02.04"]
[Round "4.5"]
[White "Swarnavo Choudhury"]
[Black "Mohammad Fahad, Rahman"]
[Result "0-1"]
[ECO "C78"]
[WhiteElo "2056"]
[BlackElo "2418"]
[Annotator "ChessBase"]
[PlyCount "94"]
[EventDate "2024.02.01"]
[EventCountry "BAN"]
[SourceTitle "playchess.com"]
[Source "ChessBase"]
[SourceQuality "1"]
[TimeControl "40/5400+30:1800+30"]

1. e4 {[%emt 0:00:07]} e5 {[%emt 0:00:24]} 2. Nf3 {[%emt 0:00:07]} Nc6 {[%emt 0:00:07]} 3. Bb5 {[%emt 0:00:06]} a6 {[%emt 0:00:10]} 4. Ba4 {[%emt 0:00:05]} Nf6 {[%emt 0:00:21]} 5. O-O {[%emt 0:00:17]} b5 {[%emt 0:00:37]} 6. Bb3 {[%emt 0:00:06]} Bc5 {[%emt 0:00:21]} 7. c3 {[%emt 0:00:46]} d6 {[%emt 0:00:13]} 8. d4 {[%emt 1:32:56]} Bb6 {[%emt 0:00:12]} 9. Be3 {[%emt 0:00:00]} O-O {[%emt 0:00:26]} 10. Nbd2 {[%emt 0:00:00]} h6 {[%emt 1:32:39]} 11. dxe5 {[%emt 0:01:30]} dxe5 {[%emt 0:00:30]} 12. Bxb6 {[%emt 0:00:00]} cxb6 {[%emt 0:00:00]} 13. Qe2 {[%emt 0:01:00]} Qc7 {[%emt 0:01:00]} 14. Rfd1 {[%emt 0:00:00]} Na5 {[%emt 0:00:30]} 15. Bd5 {[%emt 0:01:00]} Nxd5 {[%emt 0:00:00]} 16. exd5 {[%emt 0:00:00]} Re8 {[%emt 0:01:00]} 17. Rac1 {[%emt 0:01:00]} Bg4 {[%emt 0:00:00]} 18. h3 {[%emt 0:00:00]} Bxf3 {[%emt 0:01:00]} 19. Qxf3 {[%emt 0:01:00]} Rad8 {[%emt 0:00:30]} 20. b3 {[%emt 0:00:00]} Qd7 {[%emt 0:00:30]} 21. c4 {[%emt 0:01:00]} f5 {[%emt 0:00:00]} 22. Qc3 {[%emt 0:00:30]} Rc8 {[%emt 0:00:00]} 23. Qd3 {[%emt 0:00:30]} b4 {[%emt 0:00:00]} 24. a3 {[%emt 0:00:30]} bxa3 {[%emt 0:00:00]} 25. b4 {[%emt 0:00:00]} Nc6 {[%emt 0:00:00]} 26. Qxa3 {[%emt 0:00:00]} Nd4 {[%emt 0:03:00]} 27. Qd3 {[%emt 0:01:30]} b5 {[%emt 0:00:00]} 28. Nb3 {[%emt 0:00:00]} bxc4 {[%emt 0:00:00]} 29. Rxc4 {[%emt 0:00:00]} Rxc4 {[%emt 0:00:00]} 30. Qxc4 {[%emt 0:01:30]} Rc8 {[%emt 0:02:00]} 31. Qd3 {[%emt 0:00:00]} Rc3 {[%emt 0:00:00]} 32. Qxa6 {[%emt 0:00:00]} Rxb3 {[%emt 0:00:00]} 33. Qc4 {[%emt 0:00:00]} Rc3 {[%emt 0:00:00]} 34. Qa2 {[%emt 0:00:00]} Rc2 {[%emt 0:00:00]} 35. Qb1 {[%emt 0:00:21]} Rc8 {[%emt 0:00:00]} 36. Kh2 {[%emt 0:00:10]} Rd8 {[%emt 0:00:00]} 37. Kh1 {[%emt 0:01:11]} Qxd5 {[%emt 0:00:00]} 38. b5 {[%emt 0:00:05]} Qb7 {[%emt 0:00:00]} 39. Qb4 {[%emt 0:00:57]} Kh7 {[%emt 0:04:30]} 40. Qc4 {[%emt 0:00:40]} Rd5 {[%emt 0:00:00]} 41. f4 {[%emt 0:32:06]} Qxb5 {[%emt 0:27:07]} 42. Qxb5 {[%emt 0:00:00]} Rxb5 {[%emt 0:00:05]} 43. fxe5 {[%emt 0:00:00]} Nc6 {[%emt 0:00:15]} 44. e6 {[%emt 0:00:00]} Re5 {[%emt 0:00:05]} 45. Rd6 {[%emt 0:00:00]} Ne7 {[%emt 0:00:05]} 46. Kh2 {[%emt 0:00:00]} Kg6 {[%emt 0:00:04]} 47. Kg3 {[%emt 0:00:00]} Kf6 {[%emt 0:00:04]} 0-1

[Event "Bangabandhu Premier Div League 2023-24"]
[Site "Dhaka"]
[Date "2024.02.04"]
[Round "4.5"]
[White "Shawket Bin, Osman Shaon"]
[Black "Majumder, Ahmed Hossain"]
[Result "1-0"]
[ECO "E48"]
[WhiteElo "2030"]
[BlackElo "1934"]
[Annotator "NA"]
[PlyCount "69"]
[EventDate "2024.02.01"]
[EventCountry "BAN"]
[SourceTitle "playchess.com"]
[Source "ChessBase"]
[SourceQuality "1"]
[TimeControl "40/5400+30:1800+30"]

1. d4 {[%emt 0:19:49]} Nf6 {[%emt 0:00:49]} 2. c4 {[%emt 0:00:04]} e6 {[%emt 0:00:34]} 3. Nc3 {[%emt 0:00:14]} Bb4 {[%emt 0:00:49]} 4. e3 {[%emt 0:00:33]} d5 {[%emt 0:02:00]} 5. Bd3 {[%emt 0:00:47]} O-O {[%emt 0:01:42]} 6. Nge2 {[%emt 0:00:16]} dxc4 {[%emt 0:05:07]} 7. Bxc4 {[%emt 0:00:08]} b6 {[%emt 0:00:49]} 8. O-O {[%emt 0:00:26]} Bb7 {[%emt 0:02:47]} 9. f3 {[%emt 0:00:26]} c5 {[%emt 0:01:30]} 10. a3 {[%emt 0:00:30]} Bxc3 {[%emt 0:03:50]} 11. bxc3 {[%emt 0:00:07]} Qc7 {[%emt 0:01:23]} 12. Bd3 {[%emt 0:00:38]} e5 {[%emt 0:08:38]} 13. Bb2 {[%emt 0:03:40]} c4 {[%emt 0:05:54]} 14. Bc2 {[%emt 0:00:39]} Nbd7 {[%emt 0:00:37]} 15. e4 {[%emt 0:04:23]} Rfd8 {[%emt 0:07:32]} 16. Qe1 {[%emt 0:00:15]} Nf8 {[%emt 0:00:35]} 17. Rd1 {[%emt 0:03:55]} Ng6 {[%emt 0:02:33]} 18. Bc1 {[%emt 0:01:54]} h6 {[%emt 0:01:43]} 19. f4 {[%emt 0:12:27]} exd4 {[%emt 0:07:22]} 20. Nxd4 {[%emt 0:00:32]} Nxe4 {[%emt 0:02:30]} 21. f5 {[%emt 0:01:44]} Nf8 {[%emt 0:13:26]} 22. Bxe4 {[%emt 0:04:33]} Re8 {[%emt 0:00:55]} 23. Bf4 {[%emt 0:00:05]} Qc5 {[%emt 0:02:17]} 24. Qg3 {[%emt 0:00:29]} Bxe4 {[%emt 0:01:43]} 25. Bxh6 {[%emt 0:01:03]} g6 {[%emt 0:00:23]} 26. Bxf8 {[%emt 0:07:28]} Qxf8 {[%emt 0:03:02]} 27. fxg6 {[%emt 0:00:38]} Bxg6 {[%emt 0:00:31]} 28. Rf4 {[%emt 0:04:08]} Qc5 {[%emt 0:07:26]} 29. Rdf1 {[%emt 0:01:11]} Qe5 {[%emt 0:01:46]} 30. Nf5 {[%emt 0:09:41]} Kf8 {[%emt 0:06:23]} 31. Qh4 {[%emt 0:02:11]} Bxf5 {[%emt 0:00:58]} 32. Rxf5 {[%emt 0:00:19]} Qg7 {[%emt 0:07:04]} 33. Rh5 {[%emt 0:00:24]} Qg6 {[%emt 0:01:12]} 34. Rg5 {[%emt 0:02:34]} Re4 {[%emt 0:00:42]} 35. Qh8+ {[%emt 0:19:22]} 1-0

[Event "Bangabandhu Premier Div League 2023-24"]
[Site "Dhaka"]
[Date "2024.02.04"]
[Round "4.6"]
[White "Puranik, Abhimanyu"]
[Black "Sanket Chakravarty"]
[Result "1/2-1/2"]
[ECO "B40"]
[WhiteElo "2645"]
[BlackElo "2361"]
[Annotator "RC"]
[PlyCount "61"]
[EventDate "2024.02.01"]
[EventCountry "BAN"]
[SourceTitle "playchess.com"]
[Source "ChessBase"]
[SourceQuality "1"]
[TimeControl "40/5400+30:1800+30"]

1. e4 {[%emt 0:00:08]} c5 {[%emt 0:00:14]} 2. Nf3 {[%emt 0:00:06]} e6 {[%emt 0:00:11]} 3. Nc3 {[%emt 0:00:04]} Nc6 {[%emt 0:00:13]} 4. h3 {[%emt 0:00:06]} Be7 {[%emt 0:03:40]} 5. Bb5 {[%emt 0:01:05]} Nd4 {[%emt 0:00:55]} 6. Bd3 {[%emt 1:32:01]} Nc6 {[%emt 0:10:56]} 7. O-O {[%emt 0:00:00]} d6 {[%emt 1:17:51]} 8. Ne2 {[%emt 0:00:00]} Nf6 {[%emt 0:00:00]} 9. Ng3 {[%emt 0:00:00]} Bd7 {[%emt 0:00:00]} 10. c3 {[%emt 0:00:00]} O-O {[%emt 0:00:00]} 11. Re1 {[%emt 0:00:00]} Ne5 {[%emt 0:02:00]} 12. Bf1 {[%emt 0:00:00]} Bc6 {[%emt 0:00:30]} 13. d4 {[%emt 0:00:00]} Nxf3+ {[%emt 0:00:00]} 14. Qxf3 {[%emt 0:04:00]} cxd4 {[%emt 0:00:00]} 15. cxd4 {[%emt 0:00:00]} Nxe4 {[%emt 0:00:00]} 16. Nxe4 {[%emt 0:00:00]} f5 {[%emt 0:02:00]} 17. Bc4 {[%emt 0:00:00]} d5 {[%emt 0:00:30]} 18. Nc3 {[%emt 0:00:00]} dxc4 {[%emt 0:00:00]} 19. Qe2 {[%emt 0:02:30]} Bd5 {[%emt 0:00:00]} 20. Nxd5 {[%emt 0:00:00]} Qxd5 {[%emt 0:00:00]} 21. Qxe6+ {[%emt 0:00:00]} Qxe6 {[%emt 0:00:00]} 22. Rxe6 {[%emt 0:00:00]} Bf6 {[%emt 0:02:30]} 23. Rd6 {[%emt 0:00:00]} Rad8 {[%emt 0:00:00]} 24. Rxd8 {[%emt 0:00:00]} Rxd8 {[%emt 0:00:00]} 25. Be3 {[%emt 0:00:00]} Bxd4 {[%emt 0:00:00]} 26. Rd1 {[%emt 0:00:00]} Bb6 {[%emt 0:00:00]} 27. Rxd8+ {[%emt 0:00:00]} Bxd8 {[%emt 0:00:00]} 28. Bxa7 {[%emt 0:00:00]} Bf6 {[%emt 0:00:00]} 29. b3 {[%emt 0:00:00]} cxb3 {[%emt 0:00:00]} 30. axb3 {[%emt 0:00:00]} Kf7 {[%emt 0:00:00]} 31. Kf1 {[%emt 0:00:00]} 1/2-1/2